Body Name,Body,Supplier Name,Spending Service,Nature of Spend,Ledger Date,Invoice Reference,Net Amount (excluding VAT)
Lancaster City Council,30UH,A1 Supaskips Ltd,Environmental Services,Services - Waste Disposal               ,12/05/2011,39012,515
Lancaster City Council,30UH,A1 Supaskips Ltd,Environmental Services,Services - Waste Disposal               ,17/05/2011,39299,1543.22
Lancaster City Council,30UH,A1 Supaskips Ltd,Environmental Services,Services - Waste Disposal               ,17/05/2011,39463,515
Lancaster City Council,30UH,A1 Supaskips Ltd,Environmental Services,Services - Waste Disposal               ,25/05/2011,39575,515
Lancaster City Council,30UH,Abzorbed Entertainment Ltd,Community Engagement,Equipment and Tools - General           ,12/05/2011,20,3295
Lancaster City Council,30UH,Access Doors Systems Ltd,Property Services,R & M - Buildings                       ,25/05/2011,23577,800
Lancaster City Council,30UH,Adactus Housing Association Ltd,Financial Services,Capital Grants                          ,12/05/2011,PCP01,7369.53
Lancaster City Council,30UH,Advance Security (UK) Ltd,Environmental Services,Security Services                       ,09/05/2011,CO042442,6139.64
Lancaster City Council,30UH,Adzel Limited,Community Engagement,Miscellaneous Advertising               ,04/05/2011,36057,700
Lancaster City Council,30UH,Alan Dick Engineering Ltd,Community Engagement,R & M - Buildings                       ,03/05/2011,43338,564
Lancaster City Council,30UH,Anchor Flooring,Environmental Services,Capital Payments To Contractors         ,24/05/2011,AF/3393,880
Lancaster City Council,30UH,APSE,Environmental Services,Subscriptions                           ,16/05/2011,1112/194,2161
Lancaster City Council,30UH,Armistead Barnett LLP,Regeneration and Policy,Capital Payments To Contractors         ,18/05/2011,503640,743.2
Lancaster City Council,30UH,Artistes International Management Ltd,Community Engagement,Exhibitions & Events - Guarantees       ,11/05/2011,177,1270.33
Lancaster City Council,30UH,Artistes International Management Ltd,Community Engagement,Exhibitions & Events - Guarantees       ,19/05/2011,190,3000
Lancaster City Council,30UH,Askam Construction Ltd,Health & Housing,Professional Fees              ,26/05/2011,C655/VAL05/INV05,1049.75
Lancaster City Council,30UH,Association of Retained Council Housing (ARCH),Health & Housing,Subscriptions                           ,19/05/2011,subs1112/24,2000
Lancaster City Council,30UH,ATS Euromaster Ltd,Environmental Services,Repair & Mtce Of Vehicles               ,10/05/2011,73669,553.19
Lancaster City Council,30UH,Audit Commission,Financial Services,Audit Fees                              ,19/05/2011,104616,1150
Lancaster City Council,30UH,Avonics Manchester,Community Engagement,Equipment and Tools - General           ,10/05/2011,9751,609.84
Lancaster City Council,30UH,Baker Ross,Community Engagement,Materials - General                     ,23/05/2011,9948,830.04
Lancaster City Council,30UH,Ball Colegrave Ltd,Environmental Services,Materials - General                     ,18/05/2011,94289473,2863.26
Lancaster City Council,30UH,Ball Colegrave Ltd,Environmental Services,Materials - General                     ,18/05/2011,94307585,920.01
Lancaster City Council,30UH,Ball Colegrave Ltd,Environmental Services,Materials - General                     ,18/05/2011,94314056,869.86
Lancaster City Council,30UH,Ball Colegrave Ltd,Environmental Services,Materials - General                     ,18/05/2011,94314056,869.86
Lancaster City Council,30UH,Band Therapy,Community Engagement,Performing Rights Fees                  ,18/05/2011,LCC0001,870.02
Lancaster City Council,30UH,Bay Scaffolding Ltd,Environmental Services,Materials - General                     ,16/05/2011,6332,750
Lancaster City Council,30UH,Bay Scaffolding Ltd,Environmental Services,Materials - General                     ,16/05/2011,6339,700
Lancaster City Council,30UH,Big Bear Music,Community Engagement,Exhibitions & Events - Guarantees       ,10/05/2011,2261,1500
Lancaster City Council,30UH,Booker,Community Engagement,Materials For Resale                    ,24/05/2011,9951,1598.9
Lancaster City Council,30UH,Bradley Environmental Consultants Limited,Property Services,R & M - Buildings                       ,04/05/2011,59595,1232.5
Lancaster City Council,30UH,British Gas Business,Community Engagement,Gas                                     ,16/05/2011,48214565/1,4437.19
Lancaster City Council,30UH,British Gas Business,Health & Housing,Gas                                     ,26/05/2011,48214559/1,1176.96
Lancaster City Council,30UH,British Gas Business,Health & Housing,Gas                                     ,26/05/2011,48214560/1,1062.91
Lancaster City Council,30UH,British Gas Business,Health & Housing,Gas                                     ,26/05/2011,48214561/1,1132.85
Lancaster City Council,30UH,British Gas Business,Health & Housing,Gas                                     ,26/05/2011,48214562/1,964.06
Lancaster City Council,30UH,British Gas Business,Health & Housing,Gas                                     ,26/05/2011,48214563/1,1086.81
Lancaster City Council,30UH,British Gas Business,Health & Housing,Gas                                     ,26/05/2011,48426835/1,500.34
Lancaster City Council,30UH,British Gas Business,Environmental Services,Gas                                     ,10/05/2011,47694530/1,587.84
Lancaster City Council,30UH,British Gas Business,Environmental Services,Gas                                     ,10/05/2011,47694550/1,505.45
Lancaster City Council,30UH,British Gas Business,Environmental Services,Gas                                     ,10/05/2011,47694551/1,1137.75
Lancaster City Council,30UH,British Gas Business,Property Services,Gas                                     ,18/05/2011,46882633/1,-6264.86
Lancaster City Council,30UH,British Gas Business,Property Services,Gas                                     ,18/05/2011,48030677/1,5533.56
Lancaster City Council,30UH,British Gas Business,Property Services,Gas                                     ,18/05/2011,48037192/1,1330.62
Lancaster City Council,30UH,British Gas Business,Property Services,Gas                                     ,19/05/2011,48214564/1,1826.86
Lancaster City Council,30UH,British Gas Business,Property Services,Gas                                     ,23/05/2011,47694478/1,592.69
Lancaster City Council,30UH,British Gas Ltd,Health & Housing,Other Fixed Plant                       ,26/05/2011,10024,613.14
Lancaster City Council,30UH,British Gas Ltd,Health & Housing,Other Fixed Plant                       ,26/05/2011,10025,613.14
Lancaster City Council,30UH,British Gas Ltd,Health & Housing,Other Fixed Plant                       ,26/05/2011,10026,613.14
Lancaster City Council,30UH,British Gas Ltd,Health & Housing,Other Fixed Plant                       ,26/05/2011,10027,613.14
Lancaster City Council,30UH,British Parking Associatiion,Property Services,R & M Sites & Signs                     ,11/05/2011,26807,2660
Lancaster City Council,30UH,British Telecommunications plc,Information Services,Telephones                              ,12/05/2011,VP70661270Q03001,4345.9
Lancaster City Council,30UH,Burlington Uniforms Limited,Property Services,Clothing & Uniforms                     ,23/05/2011,399755,1219.19
Lancaster City Council,30UH,C H Brownsord Ltd,Health & Housing,Contracted Services                     ,26/05/2011,193,850
Lancaster City Council,30UH,C R Taylor Timber Ltd,Environmental Services,White Lund Stock                        ,06/05/2011,240740,3202.29
Lancaster City Council,30UH,Cable&Wireless UK,Information Services,Data Line Rental                        ,05/05/2011,UK10/042011/7572,11882.6
Lancaster City Council,30UH,Cable&Wireless UK,Information Services,Line Rental ,12/05/2011,B1-16098355,989.44
Lancaster City Council,30UH,Cable&Wireless UK,Information Services,Line Rental ,12/05/2011,C1-10021473274,-546.32
Lancaster City Council,30UH,Cable&Wireless UK,Information Services,Telephones                              ,12/05/2011,B1-16098234,3262.7
Lancaster City Council,30UH,Capita Business Services Ltd,Financial Services,Software Council Tax-Benefits           ,05/05/2011,92014191,24545
Lancaster City Council,30UH,Capita Business Services Ltd,Financial Services,Software Council Tax-Benefits           ,11/05/2011,40153479,-10864.29
Lancaster City Council,30UH,Capita Business Services Ltd,Financial Services,Software Council Tax-Benefits           ,11/05/2011,40153479,-14485.72
Lancaster City Council,30UH,Capita Business Services Ltd,Financial Services,Software Council Tax-Benefits           ,11/05/2011,92008363,2920
Lancaster City Council,30UH,Capita Business Services Ltd,Financial Services,Software Council Tax-Benefits           ,11/05/2011,92008491,4227.01
Lancaster City Council,30UH,Capita Business Services Ltd,Financial Services,Software Council Tax-Benefits           ,13/05/2011,92036362,13037
Lancaster City Council,30UH,Capita Business Services Ltd,Financial Services,Software Council Tax-Benefits           ,13/05/2011,92036362,9777.75
Lancaster City Council,30UH,Capita Business Services Ltd,Financial Services,Software NNDR                           ,11/05/2011,40153479,-3621.43
Lancaster City Council,30UH,Capita Business Services Ltd,Financial Services,Software NNDR                           ,13/05/2011,92036362,3259.25
Lancaster City Council,30UH,Carlisle Glass Limited,Environmental Services,Capital Payments To Contractors         ,23/05/2011,M 361269,2631.38
Lancaster City Council,30UH,Carlsberg UK Limited,Community Engagement,Bar Supplies                            ,12/05/2011,EW51744817,829.18
Lancaster City Council,30UH,Carlsberg UK Limited,Community Engagement,Bar Supplies                            ,20/05/2011,EW51761755,769.05
Lancaster City Council,30UH,Castle Joinery  (Morecambe) Limited,Community Engagement,Equipment and Tools - General           ,10/05/2011,bpo00 4782,1280
Lancaster City Council,30UH,CEM Catering Equipment,Property Services,Fixtures & Fittings - General           ,18/05/2011,28309,844
Lancaster City Council,30UH,Centerprise International Ltd,Information Services,Purchase Of Equipment                   ,13/05/2011,90115233,1556
Lancaster City Council,30UH,Chubb Electronic Security Limited,Property Services,Equipment Maintenance                   ,09/05/2011,2607945,10923.45
Lancaster City Council,30UH,City Communications,Health & Housing,Contracted Services                     ,19/05/2011,1153,1800
Lancaster City Council,30UH,City Communications,Health & Housing,Contracted Services                     ,19/05/2011,1155,7480
Lancaster City Council,30UH,City Communications,Health & Housing,Contracted Services                     ,19/05/2011,1162,1200
Lancaster City Council,30UH,City Communications,Health & Housing,R & M - Buildings                       ,19/05/2011,1154,950
Lancaster City Council,30UH,Cleanall Services Ltd.,Property Services,Other Cleaning                          ,10/05/2011,16054,5624
Lancaster City Council,30UH,Cleanall Services Ltd.,Property Services,Other Cleaning                          ,18/05/2011,16240,5624
Lancaster City Council,30UH,Clear Skies Software,Health & Housing,Software Miscellaneous                  ,17/05/2011,CSS1793,1450
Lancaster City Council,30UH,Climatemechanical Services Ltd,Property Services,R & M - Buildings                       ,26/05/2011,101655,780
Lancaster City Council,30UH,Commission Air,Regeneration and Policy,R & M - General                         ,26/05/2011,27735,599
Lancaster City Council,30UH,Container Care Solutions,Environmental Services,Materials For Resale                    ,03/05/2011,2282,550
Lancaster City Council,30UH,Container Care Solutions,Environmental Services,Materials For Resale                    ,03/05/2011,2282,1040
Lancaster City Council,30UH,Co-Operative Funeral Service,Health & Housing,Services - Burial Of The Dead           ,05/05/2011,F45362-01335,1151.75
Lancaster City Council,30UH,Co-Operative Funeral Service,Health & Housing,Services - Burial Of The Dead           ,05/05/2011,F45362-01336,1153.75
Lancaster City Council,30UH,Co-Operative Funeral Service,Health & Housing,Services - Burial Of The Dead           ,17/05/2011,F45362-01353,1153.75
Lancaster City Council,30UH,Correct Flow Engineering Ltd,Community Engagement,Capital Payments To Contractors         ,03/05/2011,18799,15323.38
Lancaster City Council,30UH,Correct Flow Engineering Ltd,Community Engagement,Other Fixed Plant                       ,03/05/2011,18800,658.59
Lancaster City Council,30UH,Creativity at Work,Regeneration and Policy,Service Training Budget                 ,11/05/2011,Nov-37,578.2
Lancaster City Council,30UH,Cromptons of Bolton,Governance Services,Relocation Expenses                     ,03/05/2011,7945,555
Lancaster City Council,30UH,Cumbria County Council,Regeneration and Policy,Morecambe Bay Strategy Partnership      ,18/05/2011,181999,3700
Lancaster City Council,30UH,DAB Graphics Ltd,Community Engagement,Materials - General                     ,26/05/2011,1578,2055
Lancaster City Council,30UH,DAB Graphics Ltd,Community Engagement,Materials - General                     ,26/05/2011,1578,669
Lancaster City Council,30UH,DAB Graphics Ltd,Community Engagement,Materials - General                     ,26/05/2011,1578,812
Lancaster City Council,30UH,DAB Graphics Ltd,Community Engagement,Materials - General                     ,26/05/2011,1578,800
Lancaster City Council,30UH,DAB Graphics Ltd,Community Engagement,Materials - General                     ,26/05/2011,1578,762
Lancaster City Council,30UH,Danfo (UK) Limited,Environmental Services,Services - General                      ,20/05/2011,1885,10553.34
Lancaster City Council,30UH,David Couttie Associates Ltd,Regeneration and Policy,Services - General                      ,20/05/2011,30037,12206.2
Lancaster City Council,30UH,Dennis Barnfield Ltd,Environmental Services,Purchase Of Vehicles Etc                ,23/05/2011,233728,25510
Lancaster City Council,30UH,Dennis Eagle Ltd,Environmental Services,Repair & Mtce Of Vehicles               ,11/05/2011,DE10532991,572.99
Lancaster City Council,30UH,Dennis Eagle Ltd,Environmental Services,Repair & Mtce Of Vehicles               ,11/05/2011,DE10535495,1024.14
Lancaster City Council,30UH,Dennis Eagle Ltd,Environmental Services,Repair & Mtce Of Vehicles               ,11/05/2011,DE10542100,793.23
Lancaster City Council,30UH,Dennis Eagle Ltd,Environmental Services,Repair & Mtce Of Vehicles               ,11/05/2011,DE30025523,-819.31
Lancaster City Council,30UH,Development Control Services Ltd,Regeneration and Policy,Subscriptions                           ,12/05/2011,8956634,745
Lancaster City Council,30UH,Dial A Flight,Community Engagement,Youth Games,10/05/2011,9743,5112.5
Lancaster City Council,30UH,Dial A Flight,Community Engagement,Youth Games,11/05/2011,9773,5112.5
Lancaster City Council,30UH,Document Output Solutions UK Limited ,Financial Services,Software Council Tax-Benefits           ,16/05/2011,11043716,600
Lancaster City Council,30UH,Duchy of Lancaster,Governance Services,Legal & Court Costs                     ,12/05/2011,28018044,500
Lancaster City Council,30UH,Dutch Maid Ices (Blackpool) Ltd,Community Engagement,Materials For Resale                    ,05/05/2011,24081,549.06
Lancaster City Council,30UH,Dutch Maid Ices (Blackpool) Ltd,Community Engagement,Materials For Resale                    ,12/05/2011,24491,810.63
Lancaster City Council,30UH,Dutton International Limited,Environmental Services,Contracted Services                     ,17/05/2011,M164584,2088.8
Lancaster City Council,30UH,Dutton International Limited,Environmental Services,Contracted Services                     ,17/05/2011,M164586,1163.28
Lancaster City Council,30UH,Dutton International Limited,Environmental Services,Contracted Services                     ,17/05/2011,M164662,2094.69
Lancaster City Council,30UH,Dutton International Limited,Environmental Services,Contracted Services                     ,17/05/2011,M164664,1682.05
Lancaster City Council,30UH,Dutton International Limited,Environmental Services,Contracted Services                     ,17/05/2011,M164734,1831.39
Lancaster City Council,30UH,Dutton International Limited,Environmental Services,Contracted Services                     ,17/05/2011,M164736,1349.96
Lancaster City Council,30UH,Dutton International Limited,Environmental Services,Contracted Services                     ,17/05/2011,M164811,1628.99
Lancaster City Council,30UH,Dutton International Limited,Environmental Services,Contracted Services                     ,17/05/2011,M164813,554.13
Lancaster City Council,30UH,Dutton International Limited,Environmental Services,Contracted Services                     ,17/05/2011,M164893,2004.3
Lancaster City Council,30UH,Dutton International Limited,Environmental Services,Contracted Services                     ,17/05/2011,M164895,1222.23
Lancaster City Council,30UH,E.ON,Regeneration and Policy,Electricity                             ,12/05/2011,HB041A0FF,798.9
Lancaster City Council,30UH,E.ON Energy Electricity Income Account,Property Services,Electricity                             ,10/05/2011,HB024BAB9,657.74
Lancaster City Council,30UH,Earley Ornamentals Ltd,Environmental Services,Materials - General                     ,17/05/2011,70036,699.53
Lancaster City Council,30UH,Earley Ornamentals Ltd,Environmental Services,Materials - General                     ,17/05/2011,70791,970.26
Lancaster City Council,30UH,Earlsmere Limited,Environmental Services,Equipment and Tools - General           ,18/05/2011,48283,2627
Lancaster City Council,30UH,Electric Center,Environmental Services,White Lund Stock                        ,25/05/2011,I4276497,1770
Lancaster City Council,30UH,Emblem Print Products Ltd,Community Engagement,Materials For Resale                    ,05/05/2011,42103,661.2
Lancaster City Council,30UH,Emblem Print Products Ltd,Community Engagement,Materials For Resale                    ,05/05/2011,42188,1254.27
Lancaster City Council,30UH,Emblem Print Products Ltd,Community Engagement,Materials For Resale                    ,12/05/2011,42394,620
Lancaster City Council,30UH,Emblem Print Products Ltd,Community Engagement,Materials For Resale                    ,25/05/2011,42222,1013.04
Lancaster City Council,30UH,EMCOR Engineering Services Ltd,Health & Housing,Capital Payments To Contractors         ,04/05/2011,MCO1003775,46688.26
Lancaster City Council,30UH,EMCOR Engineering Services Ltd,Health & Housing,Gas Partnership Agreement               ,04/05/2011,MCO1003774,39551.23
Lancaster City Council,30UH,EMCOR Engineering Services Ltd,Health & Housing,Gas Partnership Agreement               ,04/05/2011,MCO1003776,17913.66
Lancaster City Council,30UH,EMCOR Engineering Services Ltd,Health & Housing,Gas Partnership Agreement               ,19/05/2011,MCO1003784,32261.27
Lancaster City Council,30UH,Emo Oil Ltd,Environmental Services,White Lund Stock                        ,06/05/2011,6141089,25630.13
Lancaster City Council,30UH,Emo Oil Ltd,Environmental Services,White Lund Stock                        ,06/05/2011,6141101,3421.5
Lancaster City Council,30UH,Emo Oil Ltd,Environmental Services,White Lund Stock                        ,16/05/2011,6190625,25389.15
Lancaster City Council,30UH,Emo Oil Ltd,Environmental Services,White Lund Stock                        ,27/05/2011,6246822,24552.03
Lancaster City Council,30UH,Enforce Technology Ltd,Information Services,Equipment Mtce - Fixed                  ,05/05/2011,1826,724
Lancaster City Council,30UH,Enforce Technology Ltd,Information Services,Equipment Mtce - Fixed                  ,05/05/2011,1826,591
Lancaster City Council,30UH,Environment Agency,Health & Housing,Contracted Services                     ,04/05/2011,392521N,684
Lancaster City Council,30UH,Environment Agency,Health & Housing,Contracted Services                     ,12/05/2011,382451N,1539
Lancaster City Council,30UH,Environment Agency,Health & Housing,Contracted Services                     ,12/05/2011,388801N,1026
Lancaster City Council,30UH,Environment Agency,Environmental Services,Sundry Expenses                         ,09/05/2011,N01114846,6555
Lancaster City Council,30UH,Environment Agency,Property Services,Water Services                          ,19/05/2011,393241N,2052
Lancaster City Council,30UH,ESRI (UK) Limited,Information Services,Software - Arcview ArcIMS               ,19/05/2011,108674,660
Lancaster City Council,30UH,ESRI (UK) Limited,Information Services,Software - Arcview ArcIMS               ,19/05/2011,108674,5125
Lancaster City Council,30UH,ESRI (UK) Limited,Information Services,Software - Arcview ArcIMS               ,19/05/2011,108674,1425
Lancaster City Council,30UH,ESRI (UK) Limited,Information Services,Software - Arcview ArcIMS               ,19/05/2011,108674,1425
Lancaster City Council,30UH,ESRI (UK) Limited,Information Services,Software - Arcview ArcIMS               ,19/05/2011,108674,2400
Lancaster City Council,30UH,ESRI (UK) Limited,Information Services,Software - Arcview ArcIMS               ,19/05/2011,108674,850
Lancaster City Council,30UH,ESRI (UK) Limited,Information Services,Software - Arcview ArcIMS               ,19/05/2011,108674,2950
Lancaster City Council,30UH,ESRI (UK) Limited,Information Services,Software - Arcview ArcIMS               ,19/05/2011,108674,2500
Lancaster City Council,30UH,ESRI (UK) Limited,Information Services,Software - Arcview ArcIMS               ,19/05/2011,108674,1150
Lancaster City Council,30UH,ESRI (UK) Limited,Information Services,Software - Arcview ArcIMS               ,19/05/2011,108674,660
Lancaster City Council,30UH,Eversheds LLP,Regeneration and Policy,External Professional Fees              ,12/05/2011,90926309,18273.55
Lancaster City Council,30UH,F.T.S. Fire Extinguishers Ltd,Property Services,Equipment Maintenance                   ,12/05/2011,39395,550
Lancaster City Council,30UH,Farrer & Co LLP,Governance Services,Legal & Court Costs                     ,03/05/2011,10144/2075,1000
Lancaster City Council,30UH,Feather Brooksbank Ltd,Governance Services,Employee Related Advertising            ,11/05/2011,148904,1333.8
Lancaster City Council,30UH,Feather Brooksbank Ltd,Governance Services,Employee Related Advertising            ,12/05/2011,149314,660.92
Lancaster City Council,30UH,Fire Safety Solutions Ltd,Property Services,R & M - Buildings                       ,10/05/2011,FSS-1195/32A,534.05
Lancaster City Council,30UH,Fire Safety Solutions Ltd,Property Services,R & M - Buildings                       ,10/05/2011,FSS-1195/32B,534.05
Lancaster City Council,30UH,Fire Safety Solutions Ltd,Property Services,R & M - Buildings                       ,10/05/2011,FSS-1195/32C,534.05
Lancaster City Council,30UH,Fire Safety Solutions Ltd,Property Services,R & M - Buildings                       ,10/05/2011,FSS-1195/32D,534.05
Lancaster City Council,30UH,Fire Safety Solutions Ltd,Property Services,R & M - Buildings                       ,10/05/2011,FSS-1195/32E,534.05
Lancaster City Council,30UH,Fire Safety Solutions Ltd,Property Services,R & M - Buildings                       ,10/05/2011,FSS-1195/32F,534.05
Lancaster City Council,30UH,Fire Safety Solutions Ltd,Property Services,R & M - Buildings                       ,10/05/2011,FSS-1195/32G,534.05
Lancaster City Council,30UH,Fire Safety Solutions Ltd,Property Services,R & M - Buildings                       ,10/05/2011,FSS-1195/32H,534.05
Lancaster City Council,30UH,Fire Safety Solutions Ltd,Property Services,R & M - Buildings                       ,10/05/2011,FSS-1195/32I,534.05
Lancaster City Council,30UH,Furniture Matters,Environmental Services,Services - General                      ,06/05/2011,2546BB,15937.08
Lancaster City Council,30UH,G B Sport & Leisure,Environmental Services,Materials - General                     ,11/05/2011,16915-JA,834
Lancaster City Council,30UH,G. Robertson (Lancaster) Ltd,Property Services,R & M - Buildings                       ,04/05/2011,18728,720
Lancaster City Council,30UH,Gelpack Excelsior Ltd,Environmental Services,White Lund Stock                        ,23/05/2011,SINV-037620,1746
Lancaster City Council,30UH,Geno Washington,Community Engagement,Exhibitions & Events - Guarantees       ,17/05/2011,MW/1111,2500
Lancaster City Council,30UH,Gibsons Garden Machinery Ltd,Environmental Services,Purchase Of Vehicles Etc                ,09/05/2011,181456,23400
Lancaster City Council,30UH,Glasdon U.K. Ltd,Environmental Services,White Lund Stock                        ,23/05/2011,606222,2636.9
Lancaster City Council,30UH,Graphic Design,Community Engagement,Printing & Stationery                   ,13/05/2011,72666,640
Lancaster City Council,30UH,Greenham Trading Limited,Environmental Services,White Lund Stock                        ,23/05/2011,11/048010,1025.2
Lancaster City Council,30UH,Grosvenor House Papers Limited,Property Services,Printing & Stationery                   ,31/05/2011,2462,592.8
Lancaster City Council,30UH,H M Paymaster General,Governance Services,Legal & Court Costs                     ,11/05/2011,susp12,5000
Lancaster City Council,30UH,H M Paymaster General,Financial Services,Legal & Court Costs                     ,05/05/2011,Imprest:01/11,5000
Lancaster City Council,30UH,Harrison Willis & Moore,Property Services,Services - General                      ,12/05/2011,1055,2000
Lancaster City Council,30UH,Harry Howard,Regeneration and Policy,Rent                                    ,19/05/2011,100511,520
Lancaster City Council,30UH,Hartley Hire,Environmental Services,Equipment and Tools - General           ,04/05/2011,254680,567.54
Lancaster City Council,30UH,Health Clubs At Home,Community Engagement,Equipment and Tools - General           ,16/05/2011,FINSER001,579.17
Lancaster City Council,30UH,Herbert T. Forrest Ltd,Health & Housing,Capital Payments To Contractors         ,12/05/2011,011443-1,71612.18
Lancaster City Council,30UH,Heysham High School,Community Engagement,Gas                                     ,17/05/2011,IN044898,1498.64
Lancaster City Council,30UH,Heysham High School,Community Engagement,Gas                                     ,23/05/2011,IN044970,968.29
Lancaster City Council,30UH,Hillserve Limited,Health & Housing,Capital Payments To Contractors         ,04/05/2011,20990,13154.62
Lancaster City Council,30UH,Hillserve Limited,Health & Housing,Capital Payments To Contractors         ,04/05/2011,20998,1046.99
Lancaster City Council,30UH,Hillserve Limited,Health & Housing,Capital Payments To Contractors         ,19/05/2011,21014,932.24
Lancaster City Council,30UH,Hillserve Limited,Health & Housing,Capital Payments To Contractors         ,26/05/2011,21043,1224.32
Lancaster City Council,30UH,Hillserve Limited,Health & Housing,Capital Payments To Contractors         ,26/05/2011,21055,1227.39
Lancaster City Council,30UH,HMCS ,Financial Services,Legal & Court Costs                     ,11/05/2011,9771,2748
Lancaster City Council,30UH,HMG Sub-Account 3638,Community Engagement,Entertainment Fees                      ,10/05/2011,Events/11/609,8190
Lancaster City Council,30UH,Hometrack Data Systems Limited,Regeneration and Policy,Services - General                      ,12/05/2011,20515,5995
Lancaster City Council,30UH,Hopewiser Limited,Information Services,Software - LLPG                         ,05/05/2011,HW14916,2750
Lancaster City Council,30UH,Horton Automatics Limited,Property Services,R & M - Buildings                       ,09/05/2011,4031928,1352.5
Lancaster City Council,30UH,Horton Automatics Limited,Property Services,R & M - Buildings                       ,18/05/2011,4032050,782.16
Lancaster City Council,30UH,Hotfoot Design Limited,Community Engagement,Marketing                               ,12/05/2011,H000092,630
Lancaster City Council,30UH,Hotfoot Design Limited,Community Engagement,Printing & Stationery                   ,11/05/2011,H000085,575
Lancaster City Council,30UH,Howdens Joinery Co,Environmental Services,Materials - General                     ,03/05/2011,D61/0015280,788.24
Lancaster City Council,30UH,Howdens Joinery Co,Environmental Services,Materials - General                     ,04/05/2011,D61/0015282,589.82
Lancaster City Council,30UH,Howdens Joinery Co,Environmental Services,Materials - General                     ,04/05/2011,D61/0015373,518.51
Lancaster City Council,30UH,Howdens Joinery Co,Environmental Services,Materials - General                     ,04/05/2011,D61/0015554,745.58
Lancaster City Council,30UH,Howdens Joinery Co,Environmental Services,Materials - General                     ,12/05/2011,D61/0015858,768.06
Lancaster City Council,30UH,Howdens Joinery Co,Environmental Services,Materials - General                     ,20/05/2011,D61/0016125,731.02
Lancaster City Council,30UH,Howdens Joinery Co,Environmental Services,Materials - General                     ,20/05/2011,D61/0016191,957.01
Lancaster City Council,30UH,Howdens Joinery Co,Environmental Services,Materials - General                     ,24/05/2011,D61/0016315,610.74
Lancaster City Council,30UH,Howdens Joinery Co,Environmental Services,Materials - General                     ,24/05/2011,D61/0016495,786.15
Lancaster City Council,30UH,HPA,Health & Housing,Services - Contaminated Land            ,17/05/2011,9864,-794.4
Lancaster City Council,30UH,Hss Hire Group Plc,Environmental Services,Materials - General                     ,04/05/2011,6844156,545.69
Lancaster City Council,30UH,Hss Hire Group Plc,Environmental Services,Materials - General                     ,18/05/2011,7021359,752.4
Lancaster City Council,30UH,ICM Business Continuity Services Ltd t/a ICM,Information Services,Disaster Provision                      ,05/05/2011,OP/I396978,9535.8
Lancaster City Council,30UH,Instarmac Group PLC,Environmental Services,White Lund Stock                        ,06/05/2011,338013,2118.72
Lancaster City Council,30UH,International Guitar Night,Community Engagement,Exhibitions & Events - Guarantees       ,12/05/2011,2010025,1250
Lancaster City Council,30UH,IRRV,Financial Services,Office Equipment                        ,27/05/2011,A107444,950
Lancaster City Council,30UH,J C Critchley Ltd,Environmental Services,Capital Payments To Contractors         ,04/05/2011,738,5816
Lancaster City Council,30UH,jobsgopublic,Governance Services,Employee Related Advertising            ,11/05/2011,7665,12305
Lancaster City Council,30UH,Johnston Publishing Ltd,Governance Services,Miscellaneous Advertising               ,12/05/2011,6760616,1928.31
Lancaster City Council,30UH,KBC Lease (UK) Limited,Financial Services,Tpt & Plant Operating Leases            ,11/05/2011,AR/11/443933,3517.91
Lancaster City Council,30UH,KBC Lease (UK) Limited,Financial Services,Tpt & Plant Operating Leases            ,11/05/2011,AR/11/443934,3593.89
Lancaster City Council,30UH,Keycraft,Community Engagement,Materials For Resale                    ,20/05/2011,9906,874.8
Lancaster City Council,30UH,L S Systems Ltd,Environmental Services,Materials - General                     ,10/05/2011,98391,712.8
Lancaster City Council,30UH,Lancashire County Council,Health & Housing,Capital Payments To Contractors         ,27/05/2011,4600016870,7891
Lancaster City Council,30UH,Lancashire County Council,Health & Housing,Capital Grants                          ,04/05/2011,4600019664,2010
Lancaster City Council,30UH,Lancashire County Council,Health & Housing,Capital Grants                          ,04/05/2011,4600019665,2300
Lancaster City Council,30UH,Lancashire County Council,Health & Housing,Capital Grants                          ,04/05/2011,4600019666,3422
Lancaster City Council,30UH,Lancashire County Council,Health & Housing,Capital Grants                          ,04/05/2011,4600020120,540
Lancaster City Council,30UH,Lancashire County Council,Health & Housing,Capital Grants                          ,04/05/2011,4600020795,7346.5
Lancaster City Council,30UH,Lancashire County Council,Property Services,Community Transport                     ,10/05/2011,4600021049,33994.08
Lancaster City Council,30UH,Lancashire County Council,Property Services,Concessionary Travel Expenses           ,10/05/2011,4600020665,197376.03
Lancaster City Council,30UH,Lancashire County Council,Property Services,Grants                                  ,10/05/2011,4600020824,3835.66
Lancaster City Council,30UH,Lancashire County Council,Community Engagement,Sustainable Initiatives                 ,25/05/2011,4600021006,2000
Lancaster City Council,30UH,Lancashire County Council,Regeneration and Policy,R & M - General                         ,26/05/2011,4600022603,7468.78
Lancaster City Council,30UH,Lancashire Drug and Alcohol ActionTeam,Community Engagement,Grants                                  ,25/05/2011,I0010513,6294
Lancaster City Council,30UH,Lancashire Probation Board,Environmental Services,Probation Service                       ,25/05/2011,OP/I002113,24000
Lancaster City Council,30UH,Lancaster Cast Stone,Environmental Services,Other Construction Costs                ,04/05/2011,19276,541.77
Lancaster City Council,30UH,Lancaster CVS,Community Engagement,Grants                                  ,04/05/2011,140411,3375
Lancaster City Council,30UH,Lancaster Management Services T/A LaraNichols ,Community Engagement,Other Cleaning                          ,10/05/2011,1005,578.51
Lancaster City Council,30UH,Lappset Playworld UK Ltd,Environmental Services,Materials - General                     ,17/05/2011,CD201100000172,608.33
Lancaster City Council,30UH,LBS Horticulture Limited,Environmental Services,Materials - General                     ,09/05/2011,SIN0429808,1415.7
Lancaster City Council,30UH,LDWA,Financial Services,Grants                                  ,05/05/2011,Dom Abuse Outreach ,3750
Lancaster City Council,30UH,LDWA,Financial Services,Grants                                  ,19/05/2011,LDLSP Grant,3750
Lancaster City Council,30UH,LexisNexis UK,Governance Services,Books & Periodicals                     ,10/05/2011,SG9Q95844,975
Lancaster City Council,30UH,LexisNexis UK,Governance Services,Books & Periodicals                     ,10/05/2011,SG9R13429,798
Lancaster City Council,30UH,LexisNexis UK,Governance Services,Sundry Expenses                         ,10/05/2011,SU9Q95210,935
Lancaster City Council,30UH,Lingwood Security Management Limited,Property Services,Security Services                       ,17/05/2011,14379,6336
Lancaster City Council,30UH,Lovair Ltd,Property Services,Capital Payments To Contractors         ,18/05/2011,26465,2399.94
Lancaster City Council,30UH,Ludus Dance Company,Community Engagement,Grants                                  ,03/05/2011,L259,2250
Lancaster City Council,30UH,Ludus Dance Company,Community Engagement,Grants                                  ,03/05/2011,L260,8750
Lancaster City Council,30UH,M D Hanafin & Sons Ltd,Health & Housing,Contracted Services                     ,26/05/2011,85707,643.83
Lancaster City Council,30UH,M D Hanafin & Sons Ltd,Health & Housing,R & M Paths & Fences                    ,03/05/2011,1529,-1669.44
Lancaster City Council,30UH,Magnet Limited,Environmental Services,Other Construction Costs                ,24/05/2011,158/125401,623.75
Lancaster City Council,30UH,Magnet Limited,Environmental Services,Other Construction Costs                ,24/05/2011,158/125720,549.66
Lancaster City Council,30UH,Magnet Limited,Environmental Services,Other Construction Costs                ,24/05/2011,158/125775,589.91
Lancaster City Council,30UH,Magnet Limited,Environmental Services,Other Construction Costs                ,24/05/2011,158/125900,644.36
Lancaster City Council,30UH,Magnet Limited,Environmental Services,Other Construction Costs                ,24/05/2011,158/126059,555.5
Lancaster City Council,30UH,Magnet Limited,Environmental Services,Other Construction Costs                ,24/05/2011,158/126105,799.26
Lancaster City Council,30UH,Magnet Limited,Environmental Services,Other Construction Costs                ,24/05/2011,158/126161,711.46
Lancaster City Council,30UH,Magnet Limited,Environmental Services,Other Construction Costs                ,27/05/2011,158/125487,529.06
Lancaster City Council,30UH,Magnet Limited,Environmental Services,White Lund Stock                        ,23/05/2011,158/126135,659.39
Lancaster City Council,30UH,Marsh Community Centre,Community Engagement,Community Development                   ,23/05/2011,199,3237.5
Lancaster City Council,30UH,Matrix SCM Ltd,Financial Services,Services - Consultants                  ,03/05/2011,MATRIX12148         ,906.99
Lancaster City Council,30UH,Matrix SCM Ltd,Financial Services,Services - Consultants                  ,03/05/2011,MATRIX12187         ,825.68
Lancaster City Council,30UH,Matrix SCM Ltd,Financial Services,Services - Consultants                  ,09/05/2011,MATRIX12220         ,644.28
Lancaster City Council,30UH,Matrix SCM Ltd,Financial Services,Services - Consultants                  ,12/05/2011,MATRIX12258         ,499.2
Lancaster City Council,30UH,Matrix SCM Ltd,Financial Services,Services - Consultants                  ,12/05/2011,MATRIX12258         ,806.91
Lancaster City Council,30UH,Matrix SCM Ltd,Financial Services,Services - Consultants                  ,25/05/2011,LCC12297,719.34
Lancaster City Council,30UH,Matrix SCM Ltd,Financial Services,Services - Consultants                  ,31/05/2011,LCC12335,644.28
Lancaster City Council,30UH,Michael Wilson Joinery and Flat Roofing Specialist,Community Engagement,R & M - Buildings                       ,10/05/2011,004/11,672
Lancaster City Council,30UH,Middlesbrough Council,Environmental Services,White Lund Stock                        ,23/05/2011,6203714,1071
Lancaster City Council,30UH,Morecambe Brass Band Association,Community Engagement,Venue - Premises Hire Costs             ,03/05/2011,260411,1340.36
Lancaster City Council,30UH,Morecambe FC Community Sports,Community Engagement,Equipment and Tools - General           ,18/05/2011,1754,500
Lancaster City Council,30UH,Morecambe FC Community Sports,Community Engagement,Materials - General                     ,24/05/2011,1769,560
Lancaster City Council,30UH,N S Heating Services Ltd,Health & Housing,Contracted Services                     ,18/05/2011,14266,750
Lancaster City Council,30UH,National Association for AONB,Regeneration and Policy,Service Training Budget                 ,26/05/2011,Conf11/47,860
Lancaster City Council,30UH,National Association for AONB,Regeneration and Policy,Subscriptions                           ,12/05/2011,Mem11-12/38,600
Lancaster City Council,30UH,National Express,Community Engagement,National Express                        ,12/05/2011,AREXT/00106180,678.98
Lancaster City Council,30UH,NBC Bird and Pest Solutions Ltd,Health & Housing,Contracted Services                     ,17/05/2011,BL1220,7605
Lancaster City Council,30UH,Newclear Drains & Newlook Cleaning Services,Health & Housing,Contracted Services                     ,19/05/2011,7350,680
Lancaster City Council,30UH,Newclear Drains & Newlook Cleaning Services,Health & Housing,Contracted Services                     ,19/05/2011,7357,720
Lancaster City Council,30UH,Newclear Drains & Newlook Cleaning Services,Health & Housing,Contracted Services                     ,26/05/2011,7359,1050
Lancaster City Council,30UH,NHS Lanarkshire,Governance Services,Services - Medical Fees                 ,11/05/2011,L10015223,1941.33
Lancaster City Council,30UH,Nomix Enviro Ltd,Environmental Services,Materials - General                     ,17/05/2011,SI/01532082,1048.5
Lancaster City Council,30UH,Nomix Enviro Ltd,Health & Housing,Grounds Maintenance - Other             ,05/05/2011,SI/01544222,1315.75
Lancaster City Council,30UH,Norman Jackson Contractors Ltd,Health & Housing,R & M - Environmental Works             ,12/05/2011,5016,22781
Lancaster City Council,30UH,North Western Employers Org,Governance Services,Subscriptions                           ,12/05/2011,6667,5014.52
Lancaster City Council,30UH,Northern Housing Consortium Ltd,Health & Housing,Subscriptions                           ,24/05/2011,40883,1770
Lancaster City Council,30UH,Northgate Information Solutions UK Limited,Governance Services,Search Fees                             ,10/05/2011,91161441,640.51
Lancaster City Council,30UH,npower,Community Engagement,Electricity                             ,31/05/2011,LGUFW26Y,5451.9
Lancaster City Council,30UH,npower,Health & Housing,Electricity                             ,03/05/2011,LGUFRRYC,950.07
Lancaster City Council,30UH,npower,Health & Housing,Electricity                             ,03/05/2011,LGUFRRYC,1278.41
Lancaster City Council,30UH,npower,Health & Housing,Electricity                             ,03/05/2011,LGUFRRYC,5512.04
Lancaster City Council,30UH,npower,Health & Housing,Electricity                             ,03/05/2011,LGUFRRYC,1307.25
Lancaster City Council,30UH,npower,Health & Housing,Electricity                             ,03/05/2011,LGUFRRYC,1103.23
Lancaster City Council,30UH,npower,Property Services,Electricity                             ,20/05/2011,79193428210,3056.35
Lancaster City Council,30UH,npower,Property Services,Electricity                             ,23/05/2011,LGUFW262,2743.2
Lancaster City Council,30UH,npower,Property Services,Electricity                             ,23/05/2011,LGUFW263,1261.1
Lancaster City Council,30UH,npower,Property Services,Electricity                             ,25/05/2011,LGUFW265,1089.02
Lancaster City Council,30UH,npower,Property Services,Electricity                             ,26/05/2011,LGUFW264,1693.01
Lancaster City Council,30UH,npower,Property Services,Electricity                             ,31/05/2011,LGUFW26Z,1113.32
Lancaster City Council,30UH,NSL Limited,Property Services,Cash Collection Expenses                ,18/05/2011,8950,3451.42
Lancaster City Council,30UH,NSL Limited,Property Services,Contracted Services                     ,18/05/2011,8950,6816.34
Lancaster City Council,30UH,Oce Finance,Regeneration and Policy,Office Equipment                        ,12/05/2011,9.28111E+13,1055
Lancaster City Council,30UH,OCS Group UK Limited t/a Cannon,Community Engagement,Contract Maintenance                    ,11/05/2011,CN17673563,1027.68
Lancaster City Council,30UH,Orange Payment Processing,Information Services,Mobile Telephones                       ,05/05/2011,638832400,542.43
Lancaster City Council,30UH,Otis Ltd.,Property Services,R & M - Buildings                       ,23/05/2011,RTS310517101,666
Lancaster City Council,30UH,Otis Ltd.,Property Services,R & M - Buildings                       ,23/05/2011,RTS31062947,2500.62
Lancaster City Council,30UH,Otis Ltd.,Property Services,R & M - Buildings                       ,23/05/2011,TTC10001613,-870.62
Lancaster City Council,30UH,Otis Ltd.,Property Services,R & M - Buildings                       ,24/05/2011,00962814E,974.34
Lancaster City Council,30UH,Otis Ltd.,Property Services,R & M - Buildings                       ,24/05/2011,00966442E,974.34
Lancaster City Council,30UH,Otis Ltd.,Property Services,R & M - Buildings                       ,25/05/2011,RTS31054897,6156.6
Lancaster City Council,30UH,Overton Parish Council,Environmental Services,Parish Toilet Scheme                    ,17/05/2011,Re toilets Sund Poin,2509
Lancaster City Council,30UH,P & L Barton Ltd,Regeneration and Policy,R & M - Sea & River / Promenade         ,12/05/2011,4636,715
Lancaster City Council,30UH,P & L Barton Ltd,Regeneration and Policy,R & M - Sea & River / Promenade         ,12/05/2011,4637,4600
Lancaster City Council,30UH,Parksafe (Systems) Ltd,Property Services,Parksafe                                ,25/05/2011,1405,16819.5
Lancaster City Council,30UH,Pentland Plants,Environmental Services,Materials - General                     ,03/05/2011,36689,804.19
Lancaster City Council,30UH,Pentland Plants,Environmental Services,Materials - General                     ,03/05/2011,36691,869.1
Lancaster City Council,30UH,Pentland Plants,Environmental Services,Materials - General                     ,17/05/2011,37283,2707.74
Lancaster City Council,30UH,Pentland Plants,Environmental Services,Materials - General                     ,17/05/2011,37822,1754.62
Lancaster City Council,30UH,Pentland Plants,Environmental Services,Materials - General                     ,17/05/2011,38471,529.23
Lancaster City Council,30UH,Piccadilly Garden Ltd.,Environmental Services,Contracted Services                     ,18/05/2011,1040,883.42
Lancaster City Council,30UH,Pinington Limited,Property Services,R & M - Buildings                       ,25/05/2011,1001204,5146
Lancaster City Council,30UH,Pitney Bowes Finance Plc,Property Services,Postages - Mtce & Rental                ,17/05/2011,BL04318235,9083.43
Lancaster City Council,30UH,Plastech Windows,Health & Housing,Contracted Services                     ,11/05/2011,253502,1093.33
Lancaster City Council,30UH,Plastech Windows,Health & Housing,Contracted Services                     ,17/05/2011,253625,700
Lancaster City Council,30UH,PR Chauffeuring Services,Governance Services,Central Transport - General             ,19/05/2011,03.04.2011,2655
Lancaster City Council,30UH,Premier Paper Ltd,Property Services,Printing & Stationery                   ,12/05/2011,5885965,1383
Lancaster City Council,30UH,Premier Paper Ltd,Property Services,Printing & Stationery                   ,31/05/2011,5919061,1383
Lancaster City Council,30UH,Preston City Council,Financial Services,Management Fees                         ,26/05/2011,1508501,22000
Lancaster City Council,30UH,Preston City Council,Financial Services,Software Council Tax-Benefits           ,26/05/2011,1510861,2495
Lancaster City Council,30UH,Print Image Network Ltd,Governance Services,Printing & Stationery                   ,09/05/2011,A007410,6871.96
Lancaster City Council,30UH,Print Image Network Ltd,Governance Services,Printing & Stationery                   ,20/05/2011,A007437,19424.01
Lancaster City Council,30UH,Print Image Network Ltd,Governance Services,Printing & Stationery                   ,20/05/2011,A007441,672.9
Lancaster City Council,30UH,Print Image Network Ltd,Governance Services,Printing & Stationery                   ,20/05/2011,A007505,765.86
Lancaster City Council,30UH,Print Image Network Ltd,Governance Services,Printing & Stationery                   ,20/05/2011,A007647,540.5
Lancaster City Council,30UH,Print Image Network Ltd,Governance Services,Printing & Stationery                   ,20/05/2011,A007648,1002.5
Lancaster City Council,30UH,Print Image Network Ltd,Governance Services,Printing & Stationery                   ,20/05/2011,A007649,951.5
Lancaster City Council,30UH,Promenade Concert Orchestra,Community Engagement,Venue - Premises Hire Costs             ,26/05/2011,22052011,1493.7
Lancaster City Council,30UH,Puma Computer Systems Limited,Financial Services,Software Finance Suite                  ,11/05/2011,2705/020311,11098
Lancaster City Council,30UH,Purchase Power,Property Services,Postages                                ,19/05/2011,AE288298,1013
Lancaster City Council,30UH,Purple Property Group,Community Engagement,Equipment and Tools - General           ,10/05/2011,450 11B,840
Lancaster City Council,30UH,Pye Motors  Ltd,Environmental Services,Repair & Mtce Of Vehicles               ,23/05/2011,207703,1550
Lancaster City Council,30UH,Quartzelec Ltd,Property Services,R & M - Buildings                       ,25/05/2011,7021833,1670
Lancaster City Council,30UH,R Briggs & Son (Lancaster) Ltd,Health & Housing,Electrical Inspections                  ,03/05/2011,15715,8567.99
Lancaster City Council,30UH,R Briggs & Son (Lancaster) Ltd,Environmental Services,Routine Maintenance                     ,17/05/2011,15743,638
Lancaster City Council,30UH,R Delamore Ltd,Environmental Services,Materials - General                     ,03/05/2011,30366,544.09
Lancaster City Council,30UH,R Delamore Ltd,Environmental Services,Materials - General                     ,11/05/2011,22596,1177.89
Lancaster City Council,30UH,R Delamore Ltd,Environmental Services,Materials - General                     ,17/05/2011,30859,625.25
Lancaster City Council,30UH,R G Parkins & Partners Ltd,Property Services,R & M - Buildings                       ,25/05/2011,L27289/01,5635
Lancaster City Council,30UH,R.Jackson Building Contractor,Regeneration and Policy,R & M - Buildings                       ,26/05/2011,10/05/2011,2919.75
Lancaster City Council,30UH,Ray Adams Electrical Services,Community Engagement,Equipment and Tools - General           ,13/05/2011,257,980
Lancaster City Council,30UH,Redactive,Financial Services,Service Training Budget                 ,12/05/2011,9788,745
Lancaster City Council,30UH,Remploy Ltd ,Property Services,Contracted Services                     ,12/05/2011,SLS/80304710,10061.89
Lancaster City Council,30UH,Remploy Ltd ,Property Services,Contracted Services                     ,17/05/2011,SLS/80304735,10061.89
Lancaster City Council,30UH,Rentokil Initial UK Ltd,Property Services,R & M - Buildings                       ,18/05/2011,10621496,638.18
Lancaster City Council,30UH,Rexel UK Ltd,Environmental Services,Other Construction Costs                ,23/05/2011,122856565,1359.99
Lancaster City Council,30UH,Rexel UK Ltd,Environmental Services,Other Construction Costs                ,24/05/2011,122863750,3790
Lancaster City Council,30UH,Ricoh Uk Ltd,Information Services,Printing\Copying Equipment              ,05/05/2011,86369680,1167.28
Lancaster City Council,30UH,Rigby Taylor Ltd,Environmental Services,Materials - General                     ,17/05/2011,325075,1080
Lancaster City Council,30UH,Royal Mail Group Ltd,Governance Services,Postage,09/05/2011,9033717452,6773.77
Lancaster City Council,30UH,Royal Mail Group Ltd,Governance Services,Postages                                ,19/05/2011,9033760321,1563.01
Lancaster City Council,30UH,Royal Mail Group Ltd,Governance Services,Postages                                ,19/05/2011,9033852339,1964.59
Lancaster City Council,30UH,S A Johnstone,Regeneration and Policy,R & M - General                         ,12/05/2011,152030,900
Lancaster City Council,30UH,SG Equipment Finance Ltd,Financial Services,Tpt & Plant Operating Leases            ,12/05/2011,L/011/11/14702,1802.38
Lancaster City Council,30UH,Shorrocks Building Works,Health & Housing,Contracted Services                     ,11/05/2011,2882,2000
Lancaster City Council,30UH,Shorrocks Building Works,Health & Housing,Contracted Services                     ,11/05/2011,2882,1580
Lancaster City Council,30UH,Shorrocks Building Works,Health & Housing,Contracted Services                     ,17/05/2011,2886,2300
Lancaster City Council,30UH,Shorrocks Building Works,Health & Housing,Contracted Services                     ,17/05/2011,2886,1835
Lancaster City Council,30UH,Shorrocks Building Works,Health & Housing,R & M - Buildings                       ,11/05/2011,2885,2000
Lancaster City Council,30UH,Shorrocks Building Works,Health & Housing,R & M - Buildings                       ,26/05/2011,2888,1600
Lancaster City Council,30UH,Shorrocks Building Works,Health & Housing,R & M - Buildings                       ,26/05/2011,2888,550
Lancaster City Council,30UH,Siemens Financial Services Ltd,Community Engagement,Equipment Operating Leases              ,03/05/2011,284/11/0158715,862.16
Lancaster City Council,30UH,Silverdale Parish Council,Environmental Services,Parish Toilet Scheme                    ,11/05/2011,FOR MAINT OF TOILETS,4557
Lancaster City Council,30UH,Site-Scape,Regeneration and Policy,R & M - General                         ,12/05/2011,315,2460
Lancaster City Council,30UH,SitexOrbis Ltd,Regeneration and Policy,Security Services                       ,12/05/2011,R0447913M,1169.19
Lancaster City Council,30UH,SKM Enviros,Regeneration and Policy,External Professional Fees              ,04/05/2011,UN01844,4910
Lancaster City Council,30UH,Spatial Intelligence Limited,Property Services,Services - Consultants                  ,31/05/2011,929,5500
Lancaster City Council,30UH,Specsavers Optical Superstores Ltd,Health & Housing,Corporate Safety                        ,17/05/2011,INVO/59827,850
Lancaster City Council,30UH,Spring PCC Limited,Regeneration and Policy,External Professional Fees              ,26/05/2011,50,7747.5
Lancaster City Council,30UH,Stadia Sports International Ltd,Community Engagement,Equipment and Tools - General           ,10/05/2011,INV070029,3125
Lancaster City Council,30UH,Stagecoach,Community Engagement,Stagecoach Tickets                      ,11/05/2011,9759,2217.46
Lancaster City Council,30UH,Strand Enterprises Ltd,Governance Services,Miscellaneous Licences                  ,03/05/2011,E1251,12750
Lancaster City Council,30UH,Survey Operations,Property Services,Capital Payments To Contractors         ,26/05/2011,19299,1550
Lancaster City Council,30UH,Syngenta Seeds Ltd,Environmental Services,Materials - General                     ,03/05/2011,8000056583,652.74
Lancaster City Council,30UH,Syngenta Seeds Ltd,Environmental Services,Materials - General                     ,18/05/2011,8000057720,578.7
Lancaster City Council,30UH,Syngenta Seeds Ltd,Environmental Services,Materials - General                     ,18/05/2011,8000057731,784.97
Lancaster City Council,30UH,Syngenta Seeds Ltd,Environmental Services,Materials - General                     ,18/05/2011,8000059997,1633.37
Lancaster City Council,30UH,T Rodgers & Son,Health & Housing,Contracted Services                     ,11/05/2011,TR-260411,615
Lancaster City Council,30UH,Tameside M.B.C.,Financial Services,Subscriptions                           ,26/05/2011,FI40234409,3182.07
Lancaster City Council,30UH,Technogym UK Ltd,Community Engagement,Tpt & Plant Operating Leases            ,23/05/2011,11004388,2208.7
Lancaster City Council,30UH,Technology Forge,Property Services,Services - General                      ,12/05/2011,3971,1828
Lancaster City Council,30UH,"The Accounting Officer, Ministry of Defence",Community Engagement,Entertainment Fees                      ,10/05/2011,Events/11/609 Ins,3388
Lancaster City Council,30UH,The Bay,Community Engagement,Miscellaneous Advertising               ,18/05/2011,539570,602.33
Lancaster City Council,30UH,TNT Post North Ltd,Property Services,Postages                                ,12/05/2011,117899,3710.71
Lancaster City Council,30UH,TNT Post North Ltd,Property Services,Postages                                ,12/05/2011,119201,2486.56
Lancaster City Council,30UH,TNT Post North Ltd,Property Services,Postages                                ,19/05/2011,120164,1652.05
Lancaster City Council,30UH,TNT Post North Ltd,Property Services,Postages                                ,31/05/2011,120515,1732.42
Lancaster City Council,30UH,TNT Post North Ltd,Property Services,Postages                                ,31/05/2011,121362,2289.44
Lancaster City Council,30UH,Torrisholme CP School,Regeneration and Policy,Equipment and Tools - General           ,26/05/2011,LOCKIT01,3207
Lancaster City Council,30UH,Total Gas and Power,Community Engagement,Gas                                     ,20/05/2011,9904,570.44
Lancaster City Council,30UH,Tpas Limited,Health & Housing,Subscriptions                           ,17/05/2011,10046,1550
Lancaster City Council,30UH,Travellers Choice,Community Engagement,Coach Tours                             ,09/05/2011,9887,1501.7
Lancaster City Council,30UH,Turley Associates Ltd,Regeneration and Policy,External Professional Fees              ,04/05/2011,M1002393,11047.5
Lancaster City Council,30UH,Turley Associates Ltd,Regeneration and Policy,External Professional Fees              ,26/05/2011,M1002465,3530
Lancaster City Council,30UH,United Utilities,Community Engagement,Water Services                          ,17/05/2011,9855,1152.44
Lancaster City Council,30UH,United Utilities Water Plc,Property Services,Water Services                          ,03/05/2011,4084242484,3304.53
Lancaster City Council,30UH,United Utilities Water Plc,Property Services,Water Services                          ,04/05/2011,4076336880,1710.82
Lancaster City Council,30UH,United Utilities Water Plc,Property Services,Water Services                          ,26/05/2011,4031096858,1656.12
Lancaster City Council,30UH,United Utilities Water Plc,Health & Housing,Water Services                          ,12/05/2011,403 136 9350,1321.75
Lancaster City Council,30UH,United Utilities Water Plc,Environmental Services,Water Services                          ,10/05/2011,4081648779,1357.54
Lancaster City Council,30UH,United Utilities Water Plc,Environmental Services,Water Services                          ,10/05/2011,4083163348,800.02
Lancaster City Council,30UH,United Utilities Water Plc,Environmental Services,Water Services                          ,11/05/2011,4077148659,1134.5
Lancaster City Council,30UH,United Utilities Water Plc,Environmental Services,Water Services                          ,18/05/2011,4076362540,932.48
Lancaster City Council,30UH,Vacant Property Services,Health & Housing,Contracted Services                     ,19/05/2011,623446,580
Lancaster City Council,30UH,Vacant Property Services,Health & Housing,Contracted Services                     ,19/05/2011,623482,3965
Lancaster City Council,30UH,Valley View Pets Hotel,Health & Housing,Services - Kennelling                   ,05/05/2011,36/11,2778.74
Lancaster City Council,30UH,Van`s Dutch Bulb Co,Environmental Services,Materials - General                     ,09/05/2011,5058,704.5
Lancaster City Council,30UH,Viking Direct,Community Engagement,Equipment and Tools - General           ,19/05/2011,523937,634.46
Lancaster City Council,30UH,VMC Developments Ltd,Health & Housing,Capital Payments To Contractors         ,31/05/2011,LCCKW013,9552.05
Lancaster City Council,30UH,Vross Wheelchairs Limited,Health & Housing,Health And Safety                       ,19/05/2011,10600,6780
Lancaster City Council,30UH,Walker Safety,Regeneration and Policy,R & M - General                         ,12/05/2011,110494,850
Lancaster City Council,30UH,Walker Safety,Regeneration and Policy,R & M - General                         ,12/05/2011,110495,1800
Lancaster City Council,30UH,Wallgate Ltd.,Environmental Services,Materials - General                     ,18/05/2011,41856,1950
Lancaster City Council,30UH,Warton Parish Council,Environmental Services,Parish Toilet Scheme                    ,18/05/2011,re Warton Toilets,4659
Lancaster City Council,30UH,Water Sculptures,Regeneration and Policy,R & M - Sea & River / Promenade         ,26/05/2011,T131,3481.28
Lancaster City Council,30UH,Web-Labs Ltd,Community Engagement,Internet Provision                      ,10/05/2011,WL2270,1500
Lancaster City Council,30UH,Web-Labs Ltd,Community Engagement,Internet Provision                      ,10/05/2011,WL2272,4000
Lancaster City Council,30UH,Welcome Folders,Community Engagement,Miscellaneous Advertising               ,03/05/2011,3168,882
Lancaster City Council,30UH,Whittle Programmed Painting Ltd,Health & Housing,Rota Painting                           ,04/05/2011,SINV004636,9718.69
Lancaster City Council,30UH,Whittle Programmed Painting Ltd,Health & Housing,Rota Painting                           ,26/05/2011,SINV004685,27451.28
Lancaster City Council,30UH,Willis Limited,Financial Services,Employee Related Insurances             ,19/05/2011,991,500.32
Lancaster City Council,30UH,Willis Limited,Financial Services,Premises Insurance (Corporate)          ,12/05/2011,1010,15212.19
Lancaster City Council,30UH,Wybone Limited,Environmental Services,Materials - General                     ,17/05/2011,86667/G,515.84
Lancaster City Council,30UH,WYG Environment Planning Transport Ltd,Regeneration and Policy,Services - Consultants                  ,11/05/2011,768615,4469
Lancaster City Council,30UH,XI TRAINING LT,Environmental Services,Service Training Budget                 ,25/05/2011,9990,725
